fUSD/lending_fUSD_20240115
["ID","MTS","AMOUNT","RATE_DAILY","PERIOD"]
[311706314,1705345379845,-2000.0,0.0002211,2]
[311706315,1705345380472,-623.99524011,0.0002211,2]
[311706316,1705345380494,-487.65516921,0.0002211,2]
[311706317,1705345380515,-888.34959068,0.0002211,2]
[311706318,1705345381310,-878.9098071,0.0002211,2]
[311706319,1705345381332,-1121.0901929,0.00022111,2]
[311706320,1705345385310,211.91,0.00021306,2]
[311706322,1705345399924,-940.13112153,0.00022108,2]
[311706323,1705345399947,-220.30306813,0.00022108,2]
[311706324,1705345399975,-839.56581034,0.00022109,2]
[311706325,1705345401018,-155.0,0.00022107,2]
[311706326,1705345401039,-1845.0,0.00022109,2]
[311706327,1705345402388,-2000.0,0.00022109,2]
[311706328,1705345403186,-651.30474215,0.00022107,2]
[311706329,1705345403208,-646.40200703,0.00022109,2]
[311706330,1705345403229,-702.29325082,0.00022111,2]
[311706331,1705345421129,-2000.0,0.00022105,2]
[311706332,1705345421561,-1043.00044003,0.00022105,2]
[311706333,1705345421583,-956.99955997,0.00022105,2]
[311706334,1705345422347,-1657.42461698,0.00022105,2]
[311706335,1705345422370,-342.57538302,0.00022105,2]
[311706336,1705345422461,-835.12916592,0.00022105,2]
[311706337,1705345422485,-371.00930961,0.00022105,2]
[311706338,1705345422508,-310.01499725,0.00022106,2]
[311706339,1705345422530,-155.0,0.00022106,2]
[311706340,1705345422552,-204.29770003,0.00022106,2]
[311706341,1705345422574,-124.54882719,0.00022106,2]
[311706342,1705345423330,-30.45117281,0.00022106,2]
[311706343,1705345423353,-155.0,0.00022106,2]
[311706344,1705345423376,-542.9635753,0.00022106,2]
[311706345,1705345423399,-336.95365617,0.00022107,2]
[311706346,1705345423422,-934.63159572,0.00022107,2]
[311706347,1705345423945,-2000.0,0.00022107,2]
[311706348,1705345424791,-203.17659496,0.00022105,2]
[311706349,1705345424816,-1699.16332902,0.00022107,2]
[311706350,1705345424838,-97.66007602,0.00022108,2]
[311706351,1705345425399,-165.61374176,0.00022108,2]
[311706352,1705345425421,-1834.38625824,0.00022108,2]
[311706353,1705345426502,-310.04749994,0.00022108,2]
[311706354,1705345426525,-1689.95250006,0.00022108,2]
[311706355,1705345427443,-928.7956206,0.00022108,2]
[311706356,1705345427465,-532.61615679,0.00022108,2]
[311706357,1705345427486,-538.58822261,0.00022111,2]
[311706358,1705345429157,-533.85064051,0.00022116,2]
[311706359,1705345429178,-631.67168294,0.00022116,2]
[311706360,1705345429198,-383.9779648,0.00022116,2]
[311706361,1705345429219,-155.0,0.00022116,2]
[311706362,1705345429240,-295.49971175,0.00022116,2]
[311706363,1705345442405,246.24,0.00021349,2]
[311706364,1705345455081,-1499.0,0.00022104,2]
[311706365,1705345455445,182.98,0.00021335,10]
[311706366,1705345461342,416.32,0.00019418,2]
[311706367,1705345461421,416.32,0.00021681,2]
[311706368,1705345472930,454.45788398,0.00021349,2]
[311706369,1705345474108,263.13667066,0.00021349,2]
[311706370,1705345474407,155.0,0.00021349,2]
[311706371,1705345478521,208.93739244,0.00021349,2]
[311706372,1705345481110,810.16,0.00021307,2]
[311706373,1705345486164,286.33414638,0.00021349,2]
[311706374,1705345488319,-1124.63119894,0.00022102,2]
[311706375,1705345488345,-342.86944527,0.00022102,2]
[311706376,1705345488369,-532.49935579,0.00022102,2]
[311706377,1705345490492,-2000.0,0.00022102,2]
[311706378,1705345491147,-72.94564081,0.00022102,2]
[311706379,1705345491170,-1484.57200398,0.00022103,2]
[311706380,1705345491192,-220.95063616,0.00022103,2]
[311706381,1705345491215,-221.53171905,0.00022103,2]
[311706382,1705345491772,-2000.0,0.00022101,2]
[311706383,1705345492496,-2000.0,0.00022101,2]
[311706384,1705345493147,-633.79492474,0.00022101,2]
[311706385,1705345493170,-63.71784995,0.00022103,2]
[311706386,1705345493191,-268.25939778,0.00022104,2]
[311706387,1705345493211,-1034.22782753,0.00022105,2]
[311706388,1705345494027,-1255.53256283,0.00022102,2]
[311706389,1705345494050,-551.84447531,0.00022105,2]
[311706390,1705345494072,-192.62296186,0.00022106,2]
[311706391,1705345494836,-350.00418162,0.00022106,2]
[311706392,1705345494859,-1649.99581838,0.00022116,2]
[311706393,1705345495782,-2000.0,0.00022116,2]
[311706394,1705345496384,204.35761727,0.00021349,2]
[311706395,1705345497220,263.27381778,0.000221,2]
[311706396,1705345501143,-139.45669759,0.00022116,2]
[311706397,1705345501164,-467.34600505,0.00022123,2]
[311706398,1705345501184,-393.19729736,0.00022132,2]
[311706399,1705345502873,150.0,0.00020688,2]
[311706400,1705345503154,150.0,0.00020792,4]
[311706401,1705345503434,150.0,0.00020897,4]
[311706402,1705345503731,150.0,0.00021001,4]
[311706403,1705345505027,150.0,0.00021106,4]
[311706404,1705345505356,150.0,0.0002121,4]
[311706405,1705345505601,150.0,0.00021315,4]
[311706406,1705345505744,150.0,0.00021419,4]
[311706407,1705345506140,150.0,0.00021524,4]
[311706408,1705345506582,150.0,0.00021628,4]
[311706409,1705345506821,150.0,0.00021733,4]
[311706410,1705345507080,-155.0,0.00022122,2]
[311706411,1705345507109,-888.0,0.00022122,2]
[311706412,1705345507147,150.0,0.00021837,4]
[311706413,1705345507439,150.0,0.00021941,4]
[311706414,1705345507560,150.0,0.00022046,4]
[311706415,1705345512777,150.0,0.00020688,2]
[311706416,1705345513071,150.0,0.00021071,4]
[311706417,1705345513363,150.0,0.00021454,4]
[311706418,1705345513639,150.0,0.00021837,4]
[311706419,1705345514504,2369.055015,0.0002194,2]
[311706420,1705345517891,150.0,0.00020688,2]
[311706421,1705345518223,150.0,0.00021837,4]
[311706422,1705345520225,150.0,0.00020688,2]
[311706423,1705345522557,233.98135463,0.00020688,2]
[311706424,1705345524738,299.99999999,0.00020688,2]
[311706425,1705345527100,150.0,0.00020688,2]
[311706426,1705345531157,-231.88293603,0.0002212,2]
[311706427,1705345531179,-527.64290254,0.00022121,2]
[311706428,1705345531204,-171.79656324,0.00022121,2]
[311706429,1705345531225,-158.7139359,0.00022121,2]
[311706430,1705345531245,-909.96366229,0.00022122,2]
[311706431,1705345532385,-2000.0,0.0002212,2]
[311706432,1705345533533,150.0,0.00020688,2]
[311706433,1705345533561,-2000.0,0.0002212,2]
[311706434,1705345535183,-244.84167418,0.0002212,2]
[311706435,1705345535210,-1370.98811656,0.0002212,2]
[311706436,1705345535234,-384.17020926,0.00022122,2]
[311706437,1705345536506,-860.86656848,0.00022122,2]
[311706438,1705345536529,-1139.13343152,0.00022122,2]
[311706439,1705345542472,-1479.61468914,0.00022122,2]
[311706440,1705345542493,-101.38531086,0.00022132,2]
[311706441,1705345552157,-4000.0,0.00022132,2]
[311706442,1705345553269,-2567.28739178,0.00022132,2]
[311706443,1705345553292,-499.99,0.00022132,2]
[311706444,1705345553314,-154.82,0.00022133,2]
[311706445,1705345553339,-437.31,0.0002215,2]
[311706446,1705345553362,-150.0,0.0002215,4]
[311706447,1705345553384,-190.59260822,0.00022163,2]
[311706448,1705345554454,-276.75339683,0.00022163,2]
[311706449,1705345554476,-467.34600505,0.00022203,2]
[311706450,1705345554498,-158.5,0.00022209,2]
[311706451,1705345554517,-3097.40059812,0.00022209,2]
[311706452,1705345555656,-4000.0,0.00022209,2]
[311706453,1705345556654,-2902.58940188,0.00022209,2]
[311706454,1705345556678,-865.83,0.00022209,2]
[311706455,1705345556703,-231.58059812,0.00022209,2]
[311706456,1705345557686,-4000.0,0.00022209,2]
[311706457,1705345559326,-4000.0,0.00022209,2]
[311706458,1705345560007,-4000.0,0.00022209,2]
[311706459,1705345561188,-758.57178046,0.00022162,2]
[311706460,1705345561216,-3241.42821954,0.00022209,2]
[311706461,1705345575398,-2400.0,0.00022208,2]
[311706462,1705345605550,-420.0,0.00022207,2]
[311706463,1705345622269,500.0,0.0002133,2]
[311706464,1705345629996,3445.97,0.00021918,2]
[311706465,1705345652015,2472.84586929,0.00021704,2]
[311706466,1705345659281,923.51970502,0.0002148,2]
[311706467,1705345670735,512.49,0.00021339,2]
[311706471,1705345717432,159.76,0.0002133,2]
[311706472,1705345717630,159.76,0.00022041,2]
[311706473,1705345724042,168.93,0.00021878,2]
[311706474,1705345728070,155.89,0.00021495,2]
[311706475,1705345728272,155.89,0.00021557,2]
[311706476,1705345728523,155.89,0.0002162,2]
[311706477,1705345729392,155.89,0.00021682,2]
[311706478,1705345729462,155.89,0.00021744,2]
[311706479,1705345729692,155.89,0.00021806,2]
[311706480,1705345729995,155.89,0.00021868,2]
[311706481,1705345730194,155.89,0.00021931,2]
[311706482,1705345730614,155.89,0.00021993,2]
[311706483,1705345730870,155.89,0.00022055,2]
[311706484,1705345771597,14009.12,0.00021309,2]
[311706485,1705345795058,156.82,0.00021529,2]
[311706486,1705345795295,156.82,0.00021867,2]
[311706487,1705345823948,177.01,0.00017052,2]
[311706515,1705345832972,-3857.52457021,0.0002211,2]
[311706516,1705345832982,-527.64290254,0.00022111,2]
[311706517,1705345832992,-295.34208328,0.00022111,2]
[311706518,1705345833001,-1370.98811656,0.00022112,2]
[311706519,1705345833011,-400.34058814,0.00022112,2]
[311706520,1705345833021,-558.52259903,0.00022113,2]
[311706521,1705345833030,-155.89,0.00022117,2]
[311706522,1705345833039,-16853.0,0.00022153,2]
[311706523,1705345833048,-155.89,0.0002218,2]
[311706524,1705345833057,-156.82,0.00022204,2]
[311706525,1705345833066,-246.56217999,0.00022211,2]
[311706526,1705345833075,-499.99,0.00022211,2]
[311706527,1705345833088,-4236.76,0.00022211,2]
[311706528,1705345833097,-8501.7,0.00022214,2]
[311706529,1705345833106,-152.77,0.00022214,2]
[311706530,1705345833115,-150.0,0.0002222,4]
[311706531,1705345833125,-155.89,0.00022242,2]
[311706532,1705345833135,-467.34600505,0.00022242,2]
[311706533,1705345833144,-150.0,0.00022255,4]
[311706534,1705345833154,-437.31,0.00022264,2]
[311706535,1705345833163,-896.57742518,0.00022268,2]
[311706536,1705345833172,-4622.0556,0.00022277,2]
[311706537,1705345833181,-2500.0,0.00022277,2]
[311706538,1705345833192,-600.0,0.00022277,2]
[311706539,1705345833201,-787.74976778,0.00022278,2]
[311706540,1705345833211,-2696.09,0.00022278,2]
[311706541,1705345833220,-10033.11,0.00022278,2]
[311706542,1705345833230,-2684.38574832,0.00022278,2]
[311706543,1705345833239,-1105.39598526,0.00022278,2]
[311706544,1705345833248,-2043.62487227,0.00022278,2]
[311706545,1705345833257,-167.28957516,0.00022278,2]
[311706547,1705345833266,-2568.30914664,0.00022278,2]
[311706548,1705345833275,-1505.51046566,0.00022278,2]
[311706549,1705345833285,-5897.79601318,0.00022278,2]
[311706550,1705345833294,-2726.9248453,0.00022279,2]
[311706553,1705345833320,-1759.6623547,0.00022279,2]
[311706555,1705345833330,-434.3576453,0.00022279,2]
[311706579,1705345834893,-99.67300449,0.00022279,2]
[311706580,1705345834935,-169.09425021,0.00022279,2]
[311706581,1705345834947,-234.80574979,0.00022279,2]
[311706592,1705345838180,-765.19425021,0.00022279,2]
[311706593,1705345838190,-467.34600505,0.00022282,2]
[311706594,1705345838201,-810.16,0.00022286,2]
[311706595,1705345838210,-155.89,0.00022304,2]
[311706596,1705345838220,-467.34600505,0.00022321,2]
[311706597,1705345838229,-2684.38574826,0.00022335,2]
[311706598,1705345838238,-214.92297291,0.00022353,2]
[311706599,1705345838247,-150.0,0.00022359,4]
[311706600,1705345838257,-467.34600505,0.00022361,2]
[311706601,1705345838266,-155.89,0.00022366,2]
[311706602,1705345838275,-874.7856302,0.00022367,2]
[311706603,1705345838285,-874.7856302,0.00022368,2]
[311706604,1705345838295,-1158.39981992,0.00022375,2]
[311706605,1705345838303,-1254.3339191,0.00022375,2]
[311706606,1705345838313,-296.67924256,0.00022375,2]
[311706607,1705345838322,-201.32858077,0.00022375,2]
[311706608,1705345838331,-262.52911397,0.00022375,2]
[311706609,1705345838341,-220.93369083,0.00022375,2]
[311706610,1705345838353,-1520.1477635,0.00022375,2]
[311706611,1705345838362,-157.93277124,0.00022375,2]
[311706612,1705345838371,-213.11951274,0.00022375,2]
[311706613,1705345838381,-172.13338089,0.00022375,2]
[311706614,1705345838390,-3931.90451721,0.00022375,2]
[311706615,1705345838399,-2045.14093113,0.00022375,2]
[311706616,1705345838408,-384.34681583,0.00022375,2]
[311706617,1705345838417,-504.41250387,0.00022375,2]
[311706618,1705345838429,-755.88930372,0.00022375,2]
[311706619,1705345838440,-155.0,0.00022375,2]
[311706620,1705345838451,-2779.24517944,0.00022375,2]
[311706621,1705345838460,-1845.09995631,0.00022375,2]
[311706622,1705345838470,-695.72625381,0.00022375,2]
[311706623,1705345838479,-188.28470791,0.00022376,2]
[311706624,1705345838488,-2940.84816462,0.00022376,2]
[311706625,1705345838497,-615.77892904,0.00022376,2]
[311706626,1705345838507,-223.06766617,0.00022377,2]
[311706627,1705345838516,-354.29373213,0.00022377,2]
[311706629,1705345838525,-2316.12123444,0.00022377,2]
[311706630,1705345838535,-646.34349589,0.00022377,2]
[311706632,1705345838544,-438.44595758,0.00022377,2]
[311706633,1705345838553,-196.20036284,0.00022377,2]
[311706634,1705345838562,-487.88555579,0.00022377,2]
[311706635,1705345838571,-588.69538168,0.00022377,2]
[311706636,1705345838580,-219.12242606,0.00022377,2]
[311706638,1705345838590,-304.95144327,0.00022377,2]
[311706640,1705345838599,-1005.34123434,0.00022377,2]
[311706642,1705345838609,-650.26625493,0.00022377,2]
[311706644,1705345838619,-155.97345764,0.00022377,2]
[311706647,1705345838630,-206.24092755,0.00022377,2]
[311706649,1705345838639,-282.73899945,0.00022377,2]
[311706651,1705345838649,-2602.34477284,0.00022377,2]
[311706653,1705345838659,-202.85281121,0.00022377,2]
[311706655,1705345838668,-191.40471717,0.00022377,2]
[311706657,1705345838677,-685.50252079,0.00022377,2]
[311706659,1705345838687,-156.69657893,0.00022377,2]
[311706661,1705345838697,-173.92860391,0.00022377,2]
[311706663,1705345838706,-490.12994275,0.00022377,2]
[311706665,1705345838715,-417.83659713,0.00022377,2]
[311706667,1705345838725,-536.56599823,0.00022377,2]
[311706669,1705345838734,-4108.69087224,0.00022377,2]
[311706671,1705345838743,-159.68570217,0.00022377,2]
[311706673,1705345838753,-474.07011327,0.00022377,2]
[311706675,1705345838762,-45544.02513921,0.00022377,2]
[311706692,1705345838917,-1010910.84108995,0.00022377,2]
[311706694,1705345838926,-972830.05261556,0.00022378,2]
[311706696,1705345838935,-437.31,0.00022378,2]
[311706698,1705345838946,-157.71725928,0.00022378,2]
[311706700,1705345838955,-459550.37678832,0.00022378,2]
[311706702,1705345838965,-5899.24009133,0.00022378,2]
[311706704,1705345838974,-182.53353143,0.00022379,2]
[311706706,1705345838983,-709.60177563,0.00022379,2]
[311706708,1705345838992,-376.01003022,0.00022379,2]
[311706710,1705345839001,-23722.44507912,0.00022381,2]
[311706712,1705345839010,-2684.38574826,0.00022391,2]
[311706714,1705345839020,-467.34600505,0.00022401,2]
[311706716,1705345839029,-158.5,0.00022427,2]
[311706718,1705345839038,-155.89,0.00022428,2]
[311706720,1705345839047,-787.74976777,0.0002243,2]
[311706722,1705345839056,-467.34600505,0.0002244,2]
[311706724,1705345839065,-2684.38574826,0.00022448,2]
[311706726,1705345839075,-150.0,0.00022464,4]
[311706728,1705345839084,-467.34600505,0.0002248,2]
[311706730,1705345839094,-155.89,0.00022491,2]
[311706732,1705345839103,-437.31,0.00022492,2]
[311706734,1705345839113,-19119.1455636,0.000225,2]
[311706736,1705345839122,-2684.38574826,0.00022504,2]
[311706738,1705345839132,-467.34600505,0.0002252,2]
[311706740,1705345839141,-156.82,0.00022542,2]
[311706742,1705345839150,-211.00410547,0.00022548,2]
[311706744,1705345839159,-352.19,0.00022548,2]
[311706746,1705345839168,-195858.0674,0.00022553,2]
[311706748,1705345839178,-155.89,0.00022553,2]
[311706750,1705345839187,-467.34600505,0.00022559,2]
[311706752,1705345839198,-2684.38574826,0.00022561,2]
[311706754,1705345839207,-150.0,0.00022568,4]
[311706756,1705345839216,-787.74976777,0.00022582,2]
[311706758,1705345839225,-2043.62487227,0.00022589,2]
[311706760,1705345839234,-167.28957516,0.00022589,2]
[311706762,1705345839243,-1505.51046566,0.00022589,2]
[311706764,1705345839252,-5897.79601318,0.00022589,2]
[311706766,1705345839262,-467.34600505,0.00022599,2]
[311706768,1705345839271,-150.0,0.00022603,4]
[311706770,1705345839281,-437.31,0.00022607,2]
[311706772,1705345839290,-155.89,0.00022615,2]
[311706774,1705345839300,-2684.38574826,0.00022617,2]
[311706776,1705345839310,-152.77,0.00022624,2]
[311706778,1705345839319,-467.34600505,0.00022638,2]
[311706780,1705345839329,-158.5,0.00022644,2]
[311706782,1705345839338,-150.0,0.00022673,4]
[311706784,1705345839347,-2684.38574826,0.00022674,2]
[311706786,1705345839357,-467.34600505,0.00022678,2]
[311706788,1705345839366,-467.34600505,0.00022718,2]
[311706790,1705345839376,-437.31,0.00022721,2]
[311706792,1705345839385,-2684.38574826,0.0002273,2]
[311706794,1705345839394,-787.74976777,0.00022734,2]
[311706796,1705345839403,-159.76,0.00022752,2]
[311706798,1705345839413,-467.34600505,0.00022757,2]
[311706800,1705345839422,-150.0,0.00022777,4]
[311706802,1705345839431,-2684.38574826,0.00022787,2]
[311706804,1705345839440,-942.8485,0.00022796,2]
[311706806,1705345839452,-4772.4588,0.00022796,2]
[311706808,1705345839462,-167.70633689,0.00022797,2]
[311706810,1705345839471,-467.34600505,0.00022797,2]
[311706812,1705345839480,-254.25355209,0.000228,2]
[311706814,1705345839489,-4972.27,0.000228,2]
[311706816,1705345839499,-256.46,0.000228,2]
[311706818,1705345839508,-437.31,0.00022835,2]
[311706820,1705345839517,-2684.38574826,0.00022843,2]
[311706822,1705345839527,-158.5,0.00022862,2]
[311706824,1705345839536,-797.73,0.00022877,2]
[311706826,1705345839545,-271.5543,0.00022879,2]
[311706828,1705345839555,-375.2613,0.00022879,2]
[311706830,1705345839564,-156.82,0.00022879,2]
[311706832,1705345839574,-150.0,0.00022882,4]
[311706834,1705345839583,-514.57867545,0.00022884,2]
[311706836,1705345839592,-787.74976777,0.00022886,2]
[311706838,1705345839602,-874.7856302,0.00022889,2]
[311706840,1705345839611,-941.88292032,0.00022893,2]
[311706842,1705345839620,-155.54483114,0.00022893,2]
[311706844,1705345839629,-155.28486431,0.00022893,2]
[311706846,1705345839638,-239.87218972,0.00022893,2]
[311706848,1705345839648,-231.60165903,0.00022893,2]
[311706850,1705345839657,-281.57424767,0.00022893,2]
[311706853,1705345839666,-155.0,0.00022894,2]
[311706854,1705345839675,-316.17811747,0.00022894,2]
[311706857,1705345839684,-155.0,0.00022894,2]
[311706859,1705345839693,-3197.40261869,0.00022894,2]
[311706861,1705345839704,-155.6585974,0.00022894,2]
[311706863,1705345839713,-155.0,0.00022894,2]
[311706865,1705345839722,-155.91202129,0.00022894,2]
[311706867,1705345839731,-201.15150863,0.00022894,2]
[311706869,1705345839740,-422.8319916,0.00022894,2]
[311706871,1705345839750,-248.45825444,0.00022894,2]
[311706873,1705345839759,-172.29367536,0.00022894,2]
[311706875,1705345839768,-265.52418283,0.00022894,2]
[311706876,1705345839777,-581.0662314,0.00022894,2]
[311706879,1705345839787,-155.0,0.00022894,2]
[311706880,1705345839796,-288.36702129,0.00022894,2]
[311706882,1705345839805,-231.24812846,0.00022894,2]
[311706884,1705345839814,-246.82813011,0.00022894,2]
[311706887,1705345839824,-9267.76017729,0.00022894,2]
[311706889,1705345839833,-686.23856624,0.00022894,2]
[311706891,1705345839842,-285.2468137,0.00022895,2]
[311706893,1705345839851,-780.97964211,0.00022895,2]
[311706895,1705345839859,-157.92695517,0.00022896,2]
[311706897,1705345839868,-500.72754044,0.00022896,2]
[311706900,1705345839877,-169.59361344,0.00022896,2]
[311706903,1705345839886,-376.11195413,0.00022896,2]
[311706906,1705345839895,-400.0,0.00022896,2]
[311706909,1705345839904,-161.88189063,0.00022896,2]
[311706912,1705345839914,-158.65540183,0.00022896,2]
[311706915,1705345839923,-427.60812227,0.00022896,2]
[311706917,1705345839932,-301.6657775,0.00022896,2]
[311706918,1705345839941,-156.59978354,0.00022896,2]
[311706921,1705345839952,-155.36166347,0.00022896,2]
[311706923,1705345839961,-531.14690522,0.00022896,2]
[311706925,1705345839970,-161.21857687,0.00022896,2]
[311706928,1705345839980,-155.42075614,0.00022896,2]
[311706931,1705345839989,-322.29148186,0.00022896,2]
[311706934,1705345839998,-155.70944369,0.00022896,2]
[311706937,1705345840007,-166.28493638,0.00022896,2]
[311706940,1705345840016,-161.7736666,0.00022896,2]
[311706943,1705345840025,-207.6186378,0.00022896,2]
[311706946,1705345840034,-234.81000391,0.00022896,2]
[311706949,1705345840043,-485.5928344,0.00022896,2]
[311706952,1705345840052,-155.0,0.00022896,2]
[311706954,1705345840061,-660.04374522,0.00022896,2]
[311706957,1705345840070,-267.37412788,0.00022896,2]
[311706960,1705345840079,-214.99157807,0.00022896,2]
[311706963,1705345840088,-155.10772643,0.00022896,2]
[311706966,1705345840097,-301.79110902,0.00022896,2]
[311706969,1705345840106,-157.01318614,0.00022896,2]
[311706972,1705345840116,-285.24888138,0.00022896,2]
[311706975,1705345840125,-155.0,0.00022896,2]
[311706978,1705345840135,-278.31410173,0.00022896,2]
[311706980,1705345840144,-264.62708339,0.00022896,2]
[311706982,1705345840153,-155.0,0.00022896,2]
[311706985,1705345840163,-155.0,0.00022896,2]
[311706987,1705345840172,-167.79420251,0.00022896,2]
[311706989,1705345840181,-155.0,0.00022896,2]
[311706991,1705345840190,-720.44889323,0.00022896,2]
[311706993,1705345840200,-250.5942067,0.00022896,2]
[311706994,1705345840209,-163.80743956,0.00022896,2]
[311706995,1705345840218,-166.91704507,0.00022896,2]
[311706996,1705345840226,-155.2329088,0.00022896,2]
[311706997,1705345840235,-162.16116158,0.00022896,2]
[311706998,1705345840244,-202.95473276,0.00022896,2]
[311706999,1705345840253,-318.39239097,0.00022896,2]
[311707000,1705345840262,-1143.96252834,0.00022896,2]
[311707001,1705345840270,-155.43994557,0.00022897,2]
[311707002,1705345840279,-378.9441706,0.00022897,2]
[311707004,1705345840289,-155.0,0.00022897,2]
[311707006,1705345840298,-155.6555082,0.00022897,2]
[311707008,1705345840307,-155.90591231,0.00022897,2]
[311707010,1705345840316,-155.0,0.00022897,2]
[311707012,1705345840325,-270.92491801,0.00022897,2]
[311707014,1705345840336,-347.09333632,0.00022897,2]
[311707016,1705345840346,-195.37300378,0.00022897,2]
[311707018,1705345840356,-155.0,0.00022897,2]
[311707020,1705345840365,-155.84109243,0.00022897,2]
[311707022,1705345840374,-244.11212792,0.00022897,2]
[311707024,1705345840384,-348.70415271,0.00022897,2]
[311707026,1705345840393,-1043.80845818,0.00022897,2]
[311707028,1705345840402,-486.52332301,0.00022897,2]
[311707030,1705345840412,-523.27664451,0.00022897,2]
[311707032,1705345840421,-182.17402601,0.00022897,2]
[311707034,1705345840432,-202.95261036,0.00022897,2]
[311707036,1705345840442,-1631.48,0.00022897,2]
[311707038,1705345840453,-1631.48,0.00022897,2]
[311707040,1705345840463,-1631.48,0.00022897,2]
[311707042,1705345840472,-1631.48,0.00022897,2]
[311707044,1705345840481,-1631.48,0.00022897,2]
[311707046,1705345840490,-1631.48,0.00022897,2]
[311707048,1705345840500,-1631.48,0.00022897,2]
[311707050,1705345840509,-1631.48,0.00022897,2]
[311707052,1705345840518,-1631.48,0.00022897,2]
[311707054,1705345840527,-1631.48,0.00022897,2]
[311707056,1705345840536,-1631.48,0.00022897,2]
[311707058,1705345840545,-1631.48,0.00022897,2]
[311707060,1705345840554,-1631.48,0.00022897,2]
[311707062,1705345840564,-1631.48,0.00022897,2]
[311707064,1705345840573,-1631.48,0.00022897,2]
[311707066,1705345840582,-1631.48,0.00022897,2]
[311707068,1705345840592,-1631.48,0.00022897,2]
[311707070,1705345840601,-1631.48,0.00022897,2]
[311707072,1705345840611,-1631.48,0.00022897,2]
[311707074,1705345840620,-1631.48,0.00022897,2]
[311707076,1705345840630,-1631.48,0.00022897,2]
[311707078,1705345840639,-1631.48,0.00022897,2]
[311707080,1705345840648,-1631.48,0.00022897,2]
[311707082,1705345840657,-1631.5400427,0.00022897,2]
[311707084,1705345840666,-155.50144254,0.00022898,2]
[311707086,1705345840675,-3052.64896283,0.00022898,2]
[311707088,1705345840684,-163.45351284,0.00022898,2]
[311707090,1705345840693,-245000.0,0.00022899,2]
[311707092,1705345840704,-1099.56807116,0.000229,2]
[311707094,1705345840713,-150.40552867,0.000229,2]
[311707096,1705345840722,-2684.38574826,0.000229,2]
[311707098,1705345840731,-2043.62487227,0.000229,2]
[311707100,1705345840740,-167.28957516,0.000229,2]
[311707102,1705345840749,-1505.51046566,0.000229,2]
[311707104,1705345840758,-158.59380943,0.000229,2]
[311707106,1705345840768,-437.31,0.00022949,2]
[311707108,1705345840777,-157.42254353,0.00022977,2]
[311707110,1705345840786,-155.65644823,0.00022977,2]
[311707112,1705345840796,-20627.60155373,0.00022977,2]
[311707114,1705345840805,-1411.35450445,0.00022977,2]
[311707116,1705345840815,-252.61413747,0.00022977,2]
[311707118,1705345840824,-220.76003917,0.00022977,2]
[311707120,1705345840834,-7776.15759874,0.00022978,2]
[311707122,1705345840843,-474871.31276453,0.0002298,2]
[311707124,1705345840853,-214.05557257,0.00022986,4]
[311707126,1705345840862,-221.39351082,0.00022986,4]
[311707128,1705345840872,-150.0,0.00022986,4]
[311707130,1705345840880,-150.0,0.00022986,4]
[311707132,1705345840889,-299.99999999,0.00022986,4]
[311707134,1705345840899,-198.49468833,0.00022997,2]
[311707136,1705345840908,-234.98930555,0.00022997,2]
[311707138,1705345840918,-11132.77710105,0.00022997,2]
[311707141,1705345840928,-4268.2521421,0.00022997,2]
[311707143,1705345840937,-155.19087003,0.00022997,2]
[311707145,1705345840948,-354.05283991,0.00022997,2]
[311707147,1705345840957,-20209.5,0.00022999,2]
[311707149,1705345840967,-151.0,0.00022999,2]
[311707151,1705345840977,-151.0,0.00022999,7]
[311707153,1705345840987,-231.995245,0.00022999,7]
[311707155,1705345840996,-231.995245,0.00022999,7]
[311707157,1705345841006,-151.0,0.00022999,7]
[311707159,1705345841016,-151.0,0.00022999,7]
[311707161,1705345841025,-164.076039,0.00022999,7]
[311707163,1705345841035,-151.0,0.00022999,7]